[Event "*** Titled Tuesday Blitz"]
[Site "Chess.com"]
[Date "2021.03.09"]
[Round "1"]
[White "Sychev_Klementy"]
[Black "Mihnea2017"]
[Result "1-0"]
[WhiteElo "2906"]
[BlackElo "2462"]
[TimeControl "180+1"]
[EndTime "10:06:40 PST"]
[Termination "Sychev_Klementy won by resignation"]

1. e4 {[%clk 0:03:00.9]} 1... c5 {[%clk 0:02:59.2]} 2. Nf3 {[%clk 0:03:00.4]}
2... Nc6 {[%clk 0:02:59.1]} 3. d4 {[%clk 0:02:55.2]} 3... cxd4 {[%clk
0:02:58.4]} 4. Nxd4 {[%clk 0:02:56.1]} 4... Nf6 {[%clk 0:02:58.9]} 5. Nc3 {[%clk
0:02:55.8]} 5... e5 {[%clk 0:02:58.9]} 6. Ndb5 {[%clk 0:02:55.8]} 6... d6 {[%clk
0:02:58.8]} 7. Nd5 {[%clk 0:02:55.5]} 7... Nxd5 {[%clk 0:02:58]} 8. exd5 {[%clk
0:02:56.2]} 8... Nb8 {[%clk 0:02:57.9]} 9. Qf3 {[%clk 0:02:55.4]} 9... a6 {[%clk
0:02:53.5]} 10. Qa3 {[%clk 0:02:54.6]} 10... Be7 {[%clk 0:02:51.5]} 11. Bg5
{[%clk 0:02:51.9]} 11... f6 {[%clk 0:02:46.2]} 12. Bd2 {[%clk 0:02:51.1]} 12...
O-O {[%clk 0:02:38.4]} 13. Bb4 {[%clk 0:02:49.9]} 13... Qd7 {[%clk 0:02:38.1]}
14. c4 {[%clk 0:02:26]} 14... b6 {[%clk 0:02:35.8]} 15. Nc3 {[%clk 0:02:14]}
15... a5 {[%clk 0:02:31.9]} 16. Nb5 {[%clk 0:02:12.9]} 16... Rd8 {[%clk
0:02:17]} 17. Bd3 {[%clk 0:02:05.5]} 17... Ba6 {[%clk 0:02:04.8]} 18. Bd2 {[%clk
0:02:00]} 18... Bxb5 {[%clk 0:02:00.2]} 19. cxb5 {[%clk 0:01:58.3]} 19... Qg4
{[%clk 0:01:59.3]} 20. O-O {[%clk 0:01:45.8]} 20... Nd7 {[%clk 0:01:48.7]} 21.
Be3 {[%clk 0:01:44.1]} 21... e4 {[%clk 0:01:39.7]} 22. f3 {[%clk 0:01:39.2]}
22... exf3 {[%clk 0:01:33.8]} 23. Rxf3 {[%clk 0:01:40.1]} 23... Ne5 {[%clk
0:01:29.4]} 24. Rh3 {[%clk 0:01:24.5]} 24... f5 {[%clk 0:00:55.1]} 25. Rf1
{[%clk 0:01:17]} 25... Rf8 {[%clk 0:00:53]} 26. Bxb6 {[%clk 0:01:13.2]} 26... g6
{[%clk 0:00:27.9]} 27. Rg3 {[%clk 0:01:05.1]} 27... Qh5 {[%clk 0:00:20.4]} 28.
Be3 {[%clk 0:00:37.1]} 28... Kh8 {[%clk 0:00:19.1]} 29. b6 {[%clk 0:00:30.7]}
29... Ng4 {[%clk 0:00:16.8]} 30. Rh3 {[%clk 0:00:30]} 30... Qxh3 {[%clk
0:00:16.3]} 31. Bd4+ {[%clk 0:00:28.2]} 31... Bf6 {[%clk 0:00:15.1]} 32. Bxf6+
{[%clk 0:00:27.6]} 32... Nxf6 {[%clk 0:00:16]} 33. gxh3 {[%clk 0:00:27.7]} 1-0

[Event "*** Titled Tuesday Blitz"]
[Site "Chess.com"]
[Date "2021.03.09"]
[Round "1"]
[White "Bodnar_Mykola"]
[Black "Mazanchenko_Dmitry"]
[Result "0-1"]
[WhiteElo "2495"]
[BlackElo "2139"]
[TimeControl "180+1"]
[EndTime "10:06:41 PST"]
[Termination "Mazanchenko_Dmitry won by resignation"]

1. d4 {[%clk 0:03:00.9]} 1... g6 {[%clk 0:02:59.3]} 2. c4 {[%clk 0:03:00.8]}
2... Bg7 {[%clk 0:02:58.5]} 3. Nc3 {[%clk 0:03:01.3]} 3... d6 {[%clk 0:02:58.7]}
4. e4 {[%clk 0:03:01.7]} 4... Nc6 {[%clk 0:02:59]} 5. Nf3 {[%clk 0:03:02.3]}
5... Bg4 {[%clk 0:02:58]} 6. d5 {[%clk 0:02:57.6]} 6... Nd4 {[%clk 0:02:57.4]}
7. Be3 {[%clk 0:02:45]} 7... e5 {[%clk 0:02:50.3]} 8. dxe6 {[%clk 0:02:38.8]}
8... Nxe6 {[%clk 0:02:49.7]} 9. h3 {[%clk 0:02:27.9]} 9... Bxf3 {[%clk
0:02:48.6]} 10. Qxf3 {[%clk 0:02:28.8]} 10... Ne7 {[%clk 0:02:47.7]} 11. Qd1
{[%clk 0:02:21.9]} 11... Bxc3+ {[%clk 0:02:43]} 12. bxc3 {[%clk 0:02:21.8]}
12... O-O {[%clk 0:02:41]} 13. Be2 {[%clk 0:02:15]} 13... f5 {[%clk 0:02:40.8]}
14. O-O {[%clk 0:02:06.1]} 14... fxe4 {[%clk 0:02:36.3]} 15. Qc2 {[%clk
0:02:03]} 15... Nf4 {[%clk 0:02:33.3]} 16. Bxf4 {[%clk 0:01:56.1]} 16... Rxf4
{[%clk 0:02:34.2]} 17. g3 {[%clk 0:01:57]} 17... Rf5 {[%clk 0:02:24.6]} 18. Qxe4
{[%clk 0:01:57.2]} 18... Re5 {[%clk 0:02:24.5]} 19. Qd3 {[%clk 0:01:56.3]} 19...
Nf5 {[%clk 0:02:20.2]} 20. Bf3 {[%clk 0:01:55.4]} 20... c6 {[%clk 0:02:08.2]}
21. Rad1 {[%clk 0:01:51.3]} 21... Qf6 {[%clk 0:02:00.6]} 22. Be4 {[%clk
0:01:31.2]} 22... Rf8 {[%clk 0:01:45.9]} 23. Bxf5 {[%clk 0:01:31.3]} 23... Rxf5
{[%clk 0:01:46.8]} 24. Qxd6 {[%clk 0:01:31.5]} 24... Rxf2 {[%clk 0:01:41.6]} 25.
Qxf6 {[%clk 0:01:23.4]} 25... R2xf6 {[%clk 0:01:42.5]} 26. Rxf6 {[%clk
0:01:22.2]} 26... Rxf6 {[%clk 0:01:43.4]} 27. Kg2 {[%clk 0:01:17.3]} 27... Rf7
{[%clk 0:01:32.3]} 28. Rd8+ {[%clk 0:01:16.3]} 28... Kg7 {[%clk 0:01:31.6]} 29.
a4 {[%clk 0:01:16.6]} 29... Kf6 {[%clk 0:01:24.3]} 30. Ra8 {[%clk 0:01:13.8]}
30... a6 {[%clk 0:01:24.1]} 31. Kf3 {[%clk 0:01:13.9]} 31... Ke5+ {[%clk
0:01:22]} 32. Ke3 {[%clk 0:01:14.1]} 32... Kd6 {[%clk 0:01:20.7]} 33. Kd4 {[%clk
0:01:08.4]} 33... Rf3 {[%clk 0:01:17.2]} 34. c5+ {[%clk 0:01:08.2]} 34... Kc7
{[%clk 0:01:15.5]} 35. Rh8 {[%clk 0:01:07.1]} 35... Rxg3 {[%clk 0:01:15.2]} 36.
Rxh7+ {[%clk 0:01:07.1]} 36... Kb8 {[%clk 0:01:15.4]} 37. a5 {[%clk 0:01:04]}
37... g5 {[%clk 0:01:09.3]} 38. Rh8+ {[%clk 0:01:03.1]} 38... Ka7 {[%clk
0:01:08.7]} 39. Kc4 {[%clk 0:00:58.8]} 39... g4 {[%clk 0:01:06.9]} 40. hxg4
{[%clk 0:00:59.7]} 40... Rxg4+ {[%clk 0:01:07.8]} 41. Kb3 {[%clk 0:01:00]} 41...
Rg1 {[%clk 0:01:01.5]} 42. Rh2 {[%clk 0:00:40.6]} 42... Kb8 {[%clk 0:00:54]} 43.
Rh8+ {[%clk 0:00:40.2]} 43... Kc7 {[%clk 0:00:53.1]} 44. Rh7+ {[%clk 0:00:40.2]}
44... Kc8 {[%clk 0:00:51.6]} 45. Rh8+ {[%clk 0:00:40.6]} 45... Kd7 {[%clk
0:00:51.8]} 46. Rh7+ {[%clk 0:00:41]} 46... Ke6 {[%clk 0:00:52.1]} 47. Rxb7
{[%clk 0:00:38.7]} 47... Rb1+ {[%clk 0:00:51.1]} 48. Kc2 {[%clk 0:00:35.7]}
48... Rxb7 {[%clk 0:00:52]} 0-1

[Event "*** Titled Tuesday Blitz"]
[Site "Chess.com"]
[Date "2021.03.09"]
[Round "1"]
[White "aa175"]
[Black "Steegersee"]
[Result "1-0"]
[WhiteElo "2542"]
[BlackElo "2218"]
[TimeControl "180+1"]
[EndTime "10:06:43 PST"]
[Termination "aa175 won by checkmate"]

1. d4 {[%clk 0:03:00.9]} 1... Nf6 {[%clk 0:02:58.2]} 2. Nf3 {[%clk 0:03:00.6]}
2... e6 {[%clk 0:02:58.3]} 3. Bf4 {[%clk 0:03:01.2]} 3... d5 {[%clk 0:02:58.6]}
4. e3 {[%clk 0:03:01.9]} 4... Be7 {[%clk 0:02:55.2]} 5. Nbd2 {[%clk 0:03:02.1]}
5... O-O {[%clk 0:02:55.3]} 6. Bd3 {[%clk 0:03:02.7]} 6... c5 {[%clk 0:02:55.7]}
7. c3 {[%clk 0:03:03.4]} 7... Nc6 {[%clk 0:02:55.4]} 8. Ne5 {[%clk 0:03:02.6]}
8... Nxe5 {[%clk 0:02:38.7]} 9. dxe5 {[%clk 0:03:03.5]} 9... Nd7 {[%clk
0:02:38.7]} 10. h4 {[%clk 0:03:03]} 10... f6 {[%clk 0:02:36.9]} 11. Nf3 {[%clk
0:02:43.5]} 11... fxe5 {[%clk 0:02:24.5]} 12. Nxe5 {[%clk 0:02:16.1]} 12... Nxe5
{[%clk 0:02:22]} 13. Bxe5 {[%clk 0:02:17]} 13... Bf6 {[%clk 0:02:15.1]} 14. Qh5
{[%clk 0:02:11.6]} 14... g6 {[%clk 0:02:10.5]} 15. Bxg6 {[%clk 0:02:01.5]} 15...
hxg6 {[%clk 0:02:11.4]} 16. Qxg6+ {[%clk 0:02:02.4]} 16... Kh8 {[%clk
0:02:10.9]} 17. Qh6+ {[%clk 0:02:03]} 17... Kg8 {[%clk 0:02:10.4]} 18. Qg6+
{[%clk 0:02:03.5]} 18... Kh8 {[%clk 0:02:10.5]} 19. Qh5+ {[%clk 0:01:56.8]}
19... Kg7 {[%clk 0:01:30.4]} 20. Qg4+ {[%clk 0:01:32.7]} 20... Kf7 {[%clk
0:01:18.4]} 21. Qh5+ {[%clk 0:01:31.1]} 21... Ke7 {[%clk 0:01:16.2]} 22. Rh3
{[%clk 0:01:22.8]} 22... Bxe5 {[%clk 0:00:56.7]} 23. Qxe5 {[%clk 0:01:23.7]}
23... Kd7 {[%clk 0:00:44.7]} 24. Rg3 {[%clk 0:01:12.4]} 24... Kc6 {[%clk
0:00:44.1]} 25. Rg6 {[%clk 0:01:05.3]} 25... Qxh4 {[%clk 0:00:34.4]} 26. O-O-O
{[%clk 0:00:57.8]} 26... Qe4 {[%clk 0:00:30.6]} 27. Qg3 {[%clk 0:00:45.7]} 27...
Bd7 {[%clk 0:00:23.7]} 28. Rg4 {[%clk 0:00:39.8]} 28... Qf5 {[%clk 0:00:21]} 29.
e4 {[%clk 0:00:38]} 29... Qxf2 {[%clk 0:00:20]} 30. exd5+ {[%clk 0:00:38.4]}
30... exd5 {[%clk 0:00:20.5]} 31. Rg6+ {[%clk 0:00:38.6]} 31... Kb5 {[%clk
0:00:15.4]} 32. Qd3+ {[%clk 0:00:35.4]} 32... Ka5 {[%clk 0:00:15.6]} 33. b4+
{[%clk 0:00:32.7]} 33... Ka4 {[%clk 0:00:12.9]} 34. Ra6+ {[%clk 0:00:31.5]}
34... bxa6 {[%clk 0:00:10.4]} 35. Qxa6# {[%clk 0:00:32.4]} 1-0

[Event "*** Titled Tuesday Blitz"]
[Site "Chess.com"]
[Date "2021.03.09"]
[Round "1"]
[White "turayev_shahruh17"]
[Black "Fandorine"]
[Result "0-1"]
[WhiteElo "2457"]
[BlackElo "2899"]
[TimeControl "180+1"]
[EndTime "10:06:44 PST"]
[Termination "Fandorine won by resignation"]

1. e4 {[%clk 0:02:50]} 1... c5 {[%clk 0:02:53.6]} 2. Nc3 {[%clk 0:02:49.5]} 2...
d6 {[%clk 0:02:52.2]} 3. Bc4 {[%clk 0:02:48.7]} 3... Nc6 {[%clk 0:02:52]} 4. d3
{[%clk 0:02:47.6]} 4... g6 {[%clk 0:02:51.9]} 5. f4 {[%clk 0:02:45.7]} 5... Bg7
{[%clk 0:02:49.9]} 6. Nf3 {[%clk 0:02:44.4]} 6... Na5 {[%clk 0:02:37.9]} 7. Bb3
{[%clk 0:02:38.5]} 7... Nxb3 {[%clk 0:02:35.2]} 8. axb3 {[%clk 0:02:39.4]} 8...
Nh6 {[%clk 0:02:30.3]} 9. O-O {[%clk 0:02:36.9]} 9... O-O {[%clk 0:02:30]} 10.
Qe1 {[%clk 0:02:36.5]} 10... f5 {[%clk 0:02:29.7]} 11. e5 {[%clk 0:02:35.1]}
11... Nf7 {[%clk 0:02:23.9]} 12. e6 {[%clk 0:02:22.9]} 12... Nh8 {[%clk
0:02:18.4]} 13. Nd5 {[%clk 0:02:18.4]} 13... b6 {[%clk 0:02:18.1]} 14. Qh4
{[%clk 0:02:02.3]} 14... Re8 {[%clk 0:02:13.7]} 15. Re1 {[%clk 0:01:57.1]} 15...
Bb7 {[%clk 0:02:07]} 16. c4 {[%clk 0:01:42.7]} 16... b5 {[%clk 0:01:59.5]} 17.
Bd2 {[%clk 0:01:26.5]} 17... b4 {[%clk 0:01:49.9]} 18. Re2 {[%clk 0:01:18.8]}
18... Bxd5 {[%clk 0:01:48.4]} 19. cxd5 {[%clk 0:01:16.8]} 19... Qb6 {[%clk
0:01:48]} 20. Ng5 {[%clk 0:00:53.3]} 20... h6 {[%clk 0:01:39.5]} 21. Nf7 {[%clk
0:00:50.2]} 21... Nxf7 {[%clk 0:01:39.2]} 22. exf7+ {[%clk 0:00:44.6]} 22...
Kxf7 {[%clk 0:01:40.1]} 23. Rae1 {[%clk 0:00:44.5]} 23... Qb7 {[%clk 0:01:40]}
24. Kh1 {[%clk 0:00:33.4]} 24... Bf6 {[%clk 0:01:36.1]} 25. Qh3 {[%clk
0:00:17.9]} 25... Qxd5 {[%clk 0:01:34]} 26. Re3 {[%clk 0:00:18.6]} 26... h5
{[%clk 0:01:30.9]} 27. Rg3 {[%clk 0:00:17.6]} 27... a5 {[%clk 0:01:29.8]} 28.
Rge3 {[%clk 0:00:14.3]} 28... Qxb3 {[%clk 0:01:24.3]} 29. d4 {[%clk 0:00:12.7]}
29... Qxb2 {[%clk 0:01:21.6]} 30. Bc1 {[%clk 0:00:12.5]} 30... Qxd4 {[%clk
0:01:20.1]} 31. Qf3 {[%clk 0:00:12.1]} 31... a4 {[%clk 0:01:16.2]} 32. h3 {[%clk
0:00:05.2]} 32... a3 {[%clk 0:01:13.9]} 33. R3e2 {[%clk 0:00:06.1]} 33... a2
{[%clk 0:01:11.2]} 34. Bb2 {[%clk 0:00:06.1]} 34... a1=Q {[%clk 0:01:07.3]} 35.
Rxa1 {[%clk 0:00:05.2]} 35... Rxa1+ {[%clk 0:01:06.7]} 36. Kh2 {[%clk
0:00:05.3]} 36... Qg1+ {[%clk 0:01:05.6]} 37. Kg3 {[%clk 0:00:05.4]} 37... Bxb2
{[%clk 0:01:05.5]} 38. Qd5+ {[%clk 0:00:05.6]} 0-1

[Event "*** Titled Tuesday Blitz"]
[Site "Chess.com"]
[Date "2021.03.09"]
[Round "1"]
[White "Kaiyrbekov"]
[Black "ehrenfeld"]
[Result "0-1"]
[WhiteElo "2091"]
[BlackElo "2505"]
[TimeControl "180+1"]
[EndTime "10:06:48 PST"]
[Termination "ehrenfeld won by resignation"]

1. c4 {[%clk 0:02:59]} 1... e5 {[%clk 0:02:59.2]} 2. Nc3 {[%clk 0:02:58.5]} 2...
Nc6 {[%clk 0:02:59.4]} 3. Nf3 {[%clk 0:02:54.9]} 3... Nf6 {[%clk 0:02:52.6]} 4.
g3 {[%clk 0:02:54.8]} 4... Bc5 {[%clk 0:02:51.1]} 5. Bg2 {[%clk 0:02:53]} 5...
d6 {[%clk 0:02:50.7]} 6. O-O {[%clk 0:02:52.3]} 6... a6 {[%clk 0:02:46.3]} 7. a3
{[%clk 0:02:42.8]} 7... O-O {[%clk 0:02:45.9]} 8. b4 {[%clk 0:02:43]} 8... Ba7
{[%clk 0:02:45.3]} 9. Bb2 {[%clk 0:02:43]} 9... Bg4 {[%clk 0:02:42.8]} 10. Nd5
{[%clk 0:02:29]} 10... Nxd5 {[%clk 0:02:40.6]} 11. cxd5 {[%clk 0:02:29.9]} 11...
Ne7 {[%clk 0:02:40.9]} 12. e4 {[%clk 0:02:27.1]} 12... Qd7 {[%clk 0:02:36.2]}
13. Re1 {[%clk 0:02:23.7]} 13... f5 {[%clk 0:01:52.7]} 14. d4 {[%clk 0:02:13.8]}
14... fxe4 {[%clk 0:01:47.9]} 15. Rxe4 {[%clk 0:02:10.6]} 15... Qf5 {[%clk
0:01:35.8]} 16. Re3 {[%clk 0:01:51.3]} 16... Qh5 {[%clk 0:01:31.8]} 17. Qd3
{[%clk 0:01:43]} 17... e4 {[%clk 0:00:56]} 18. Qxe4 {[%clk 0:01:34.6]} 18... Nf5
{[%clk 0:00:54.4]} 19. Rb3 {[%clk 0:01:29.7]} 19... Rae8 {[%clk 0:00:50.8]} 20.
Qd3 {[%clk 0:01:09]} 20... Ne7 {[%clk 0:00:34.4]} 21. Rf1 {[%clk 0:00:50.4]}
21... Nxd5 {[%clk 0:00:33.4]} 22. Nd2 {[%clk 0:00:42.3]} 22... Be2 {[%clk
0:00:28.2]} 23. Bxd5+ {[%clk 0:00:40.5]} 23... Qxd5 {[%clk 0:00:27.4]} 24. Qc3
{[%clk 0:00:23.7]} 24... Bxf1 {[%clk 0:00:27]} 25. Nxf1 {[%clk 0:00:22.9]} 25...
Re7 {[%clk 0:00:25.9]} 26. Ne3 {[%clk 0:00:16.3]} 26... Qf3 {[%clk 0:00:25.6]}
27. d5 {[%clk 0:00:15.2]} 27... Bxe3 {[%clk 0:00:24.2]} 28. Qxg7+ {[%clk
0:00:14.3]} 28... Rxg7 {[%clk 0:00:23.1]} 29. Rxe3 {[%clk 0:00:12.6]} 29...
Qxf2+ {[%clk 0:00:22.9]} 0-1

[Event "*** Titled Tuesday Blitz"]
[Site "Chess.com"]
[Date "2021.03.09"]
[Round "1"]
[White "maximnovik"]
[Black "Speed-O-Sonic"]
[Result "0-1"]
[WhiteElo "2551"]
[BlackElo "2292"]
[TimeControl "180+1"]
[EndTime "10:06:49 PST"]
[Termination "Speed-O-Sonic won by resignation"]

1. d4 {[%clk 0:02:53.8]} 1... d5 {[%clk 0:02:59.8]} 2. c4 {[%clk 0:02:52.9]}
2... c6 {[%clk 0:02:58.8]} 3. Nc3 {[%clk 0:02:53.1]} 3... Nf6 {[%clk 0:02:56.6]}
4. Bf4 {[%clk 0:02:53.4]} 4... dxc4 {[%clk 0:02:49.4]} 5. e3 {[%clk 0:02:53.6]}
5... Bf5 {[%clk 0:02:48.1]} 6. Bxc4 {[%clk 0:02:51.4]} 6... e6 {[%clk
0:02:48.6]} 7. Nf3 {[%clk 0:02:48.7]} 7... Nbd7 {[%clk 0:02:42.2]} 8. h3 {[%clk
0:02:44.5]} 8... Bb4 {[%clk 0:02:24.6]} 9. O-O {[%clk 0:02:36.1]} 9... O-O
{[%clk 0:02:24]} 10. Qe2 {[%clk 0:02:33.1]} 10... Ne4 {[%clk 0:02:13.1]} 11.
Rac1 {[%clk 0:02:27.2]} 11... Ndf6 {[%clk 0:02:07.5]} 12. Ne5 {[%clk 0:02:24.1]}
12... Nxc3 {[%clk 0:01:52.4]} 13. bxc3 {[%clk 0:02:23]} 13... Bd6 {[%clk
0:01:53]} 14. Bh2 {[%clk 0:02:11.9]} 14... Qc7 {[%clk 0:01:49.2]} 15. f4 {[%clk
0:01:48.1]} 15... Be4 {[%clk 0:01:28.8]} 16. Bd3 {[%clk 0:01:40.8]} 16... Bxe5
{[%clk 0:01:12]} 17. fxe5 {[%clk 0:01:38.7]} 17... Bxd3 {[%clk 0:01:10.9]} 18.
Qxd3 {[%clk 0:01:38.6]} 18... Nd5 {[%clk 0:01:09.6]} 19. e4 {[%clk 0:01:37.8]}
19... Ne7 {[%clk 0:01:09]} 20. Rf3 {[%clk 0:01:34.7]} 20... Ng6 {[%clk 0:01:06]}
21. Bg3 {[%clk 0:01:26.2]} 21... Rad8 {[%clk 0:01:04.4]} 22. h4 {[%clk
0:01:12.2]} 22... c5 {[%clk 0:00:57.8]} 23. h5 {[%clk 0:01:10.5]} 23... Ne7
{[%clk 0:00:47.2]} 24. Rcf1 {[%clk 0:01:08.3]} 24... cxd4 {[%clk 0:00:45]} 25.
cxd4 {[%clk 0:01:07.6]} 25... Nc6 {[%clk 0:00:41.6]} 26. Qe3 {[%clk 0:00:43.3]}
26... Nxd4 {[%clk 0:00:37.5]} 27. R3f2 {[%clk 0:00:42.5]} 27... h6 {[%clk
0:00:32.8]} 28. Rf6 {[%clk 0:00:36.8]} 28... gxf6 {[%clk 0:00:12.7]} 29. Qxh6
{[%clk 0:00:31.6]} 29... Ne2+ {[%clk 0:00:12.3]} 30. Kh2 {[%clk 0:00:29.2]}
30... Nxg3 {[%clk 0:00:12.9]} 31. exf6 {[%clk 0:00:20]} 31... Nf5+ {[%clk
0:00:12.3]} 0-1

[Event "*** Titled Tuesday Blitz"]
[Site "Chess.com"]
[Date "2021.03.09"]
[Round "1"]
[White "OMGCovid-19"]
[Black "sau6on"]
[Result "0-1"]
[WhiteElo "2078"]
[BlackElo "2509"]
[TimeControl "180+1"]
[EndTime "10:06:49 PST"]
[Termination "sau6on won by checkmate"]

1. e4 {[%clk 0:02:58.9]} 1... c5 {[%clk 0:02:58.1]} 2. Nf3 {[%clk 0:02:57.6]}
2... d6 {[%clk 0:02:57.9]} 3. d4 {[%clk 0:02:57.7]} 3... cxd4 {[%clk 0:02:57.8]}
4. Qxd4 {[%clk 0:02:58.3]} 4... Nc6 {[%clk 0:02:56.3]} 5. Bb5 {[%clk 0:02:58.7]}
5... Bd7 {[%clk 0:02:56.3]} 6. Bxc6 {[%clk 0:02:58.9]} 6... Bxc6 {[%clk
0:02:56.4]} 7. Nc3 {[%clk 0:02:59.4]} 7... h6 {[%clk 0:02:54.6]} 8. O-O {[%clk
0:02:57.3]} 8... e5 {[%clk 0:02:54.2]} 9. Qd3 {[%clk 0:02:56]} 9... Nf6 {[%clk
0:02:52.8]} 10. Be3 {[%clk 0:02:22.1]} 10... Be7 {[%clk 0:02:45]} 11. Rad1
{[%clk 0:02:19.9]} 11... O-O {[%clk 0:02:31.3]} 12. Nh4 {[%clk 0:02:18.8]} 12...
Nxe4 {[%clk 0:02:05]} 13. Nxe4 {[%clk 0:02:17.6]} 13... Bxh4 {[%clk 0:02:01.6]}
14. Nxd6 {[%clk 0:01:56.8]} 14... Qc7 {[%clk 0:01:10.7]} 15. Bc5 {[%clk
0:01:44.1]} 15... Bxg2 {[%clk 0:00:53.1]} 16. Kxg2 {[%clk 0:01:14.9]} 16... Qxc5
{[%clk 0:00:50.9]} 17. Ne4 {[%clk 0:01:03.8]} 17... Qc6 {[%clk 0:00:46.2]} 18.
Rfe1 {[%clk 0:00:51.5]} 18... f5 {[%clk 0:00:40.4]} 19. Qb3+ {[%clk 0:00:51]}
19... Kh8 {[%clk 0:00:20.4]} 20. Rd6 {[%clk 0:00:51.4]} 20... Qc7 {[%clk
0:00:18.7]} 21. Red1 {[%clk 0:00:18.5]} 21... fxe4 {[%clk 0:00:18.6]} 22. Rd7
{[%clk 0:00:18.5]} 22... Qc6 {[%clk 0:00:18.4]} 23. R1d6 {[%clk 0:00:17.9]}
23... Qc5 {[%clk 0:00:12.2]} 24. Qe6 {[%clk 0:00:15.7]} 24... Qxf2+ {[%clk
0:00:11.7]} 25. Kh3 {[%clk 0:00:15]} 25... Rf3+ {[%clk 0:00:10]} 26. Kg4 {[%clk
0:00:13.3]} 26... Qg2+ {[%clk 0:00:10.5]} 27. Kh5 {[%clk 0:00:13.4]} 27... Qg5#
{[%clk 0:00:10.4]} 0-1

[Event "*** Titled Tuesday Blitz"]
[Site "Chess.com"]
[Date "2021.03.09"]
[Round "1"]
[White "Etud-otradnoe"]
[Black "GM_Huschenbeth"]
[Result "0-1"]
[WhiteElo "2319"]
[BlackElo "2626"]
[TimeControl "180+1"]
[EndTime "10:06:53 PST"]
[Termination "GM_Huschenbeth won on time"]

1. e4 {[%clk 0:02:59.5]} 1... c5 {[%clk 0:02:59.3]} 2. c3 {[%clk 0:02:58.9]}
2... Nf6 {[%clk 0:02:58.4]} 3. e5 {[%clk 0:02:58.6]} 3... Nd5 {[%clk 0:02:58.2]}
4. d4 {[%clk 0:02:58.5]} 4... cxd4 {[%clk 0:02:56.2]} 5. Nf3 {[%clk 0:02:58.3]}
5... Nc6 {[%clk 0:02:54.1]} 6. cxd4 {[%clk 0:02:57.1]} 6... d6 {[%clk
0:02:52.6]} 7. Bc4 {[%clk 0:02:56.9]} 7... dxe5 {[%clk 0:02:52.7]} 8. Bxd5
{[%clk 0:02:51.4]} 8... Qxd5 {[%clk 0:02:49.9]} 9. Nc3 {[%clk 0:02:51.4]} 9...
Qd6 {[%clk 0:02:48.1]} 10. d5 {[%clk 0:02:51]} 10... Nd4 {[%clk 0:02:48]} 11.
Nxd4 {[%clk 0:02:50.1]} 11... exd4 {[%clk 0:02:48.9]} 12. Qxd4 {[%clk
0:02:50.2]} 12... e5 {[%clk 0:02:49.1]} 13. Qd3 {[%clk 0:02:49.9]} 13... a6
{[%clk 0:02:21]} 14. O-O {[%clk 0:02:42.8]} 14... Be7 {[%clk 0:02:20.5]} 15. Qg3
{[%clk 0:02:08.2]} 15... O-O {[%clk 0:02:16.9]} 16. Re1 {[%clk 0:02:02.3]} 16...
f6 {[%clk 0:02:08.7]} 17. Bh6 {[%clk 0:01:36.8]} 17... Rf7 {[%clk 0:02:06.6]}
18. Rad1 {[%clk 0:01:37.2]} 18... Bf5 {[%clk 0:02:02.2]} 19. f4 {[%clk
0:01:12.8]} 19... e4 {[%clk 0:01:51.5]} 20. Nxe4 {[%clk 0:00:41.5]} 20... Qb6+
{[%clk 0:01:31.7]} 21. Kh1 {[%clk 0:00:29]} 21... Kh8 {[%clk 0:01:18.1]} 22. d6
{[%clk 0:00:28.2]} 22... Bf8 {[%clk 0:01:13.9]} 23. Bg5 {[%clk 0:00:14.3]} 23...
fxg5 {[%clk 0:01:09.2]} 24. Nxg5 {[%clk 0:00:13.7]} 24... Rd7 {[%clk 0:01:04.4]}
25. Re5 {[%clk 0:00:13.6]} 25... Bc2 {[%clk 0:00:53.1]} 26. Rd2 {[%clk 0:00:09]}
26... Rc8 {[%clk 0:00:45.3]} 27. Qh3 {[%clk 0:00:08.3]} 27... Bf5 {[%clk
0:00:41.2]} 28. g4 {[%clk 0:00:02.9]} 28... Rc1+ {[%clk 0:00:40.1]} 29. Kg2
{[%clk 0:00:03.1]} 29... Qg1+ {[%clk 0:00:37.2]} 30. Kf3 {[%clk 0:00:03.1]}
30... Rf1+ {[%clk 0:00:36.3]} 0-1

[Event "*** Titled Tuesday Blitz"]
[Site "Chess.com"]
[Date "2021.03.09"]
[Round "1"]
[White "MerryPoppies"]
[Black "Natalya_Buksa"]
[Result "0-1"]
[WhiteElo "2187"]
[BlackElo "2524"]
[TimeControl "180+1"]
[EndTime "10:06:55 PST"]
[Termination "Natalya_Buksa won by resignation"]

1. d4 {[%clk 0:02:49]} 1... d5 {[%clk 0:02:59.5]} 2. Nf3 {[%clk 0:02:45.8]} 2...
Nf6 {[%clk 0:02:59.2]} 3. Bf4 {[%clk 0:02:42.6]} 3... e6 {[%clk 0:02:59.4]} 4.
c3 {[%clk 0:02:41.6]} 4... Bd6 {[%clk 0:02:59.8]} 5. e3 {[%clk 0:02:41.3]} 5...
c5 {[%clk 0:02:59.9]} 6. Bb5+ {[%clk 0:02:40.1]} 6... Bd7 {[%clk 0:02:50]} 7.
Bxd6 {[%clk 0:02:32.5]} 7... Bxb5 {[%clk 0:02:49.9]} 8. Bxc5 {[%clk 0:02:30.9]}
8... Nc6 {[%clk 0:02:46.6]} 9. a4 {[%clk 0:02:26.5]} 9... Ba6 {[%clk 0:02:45.9]}
10. b4 {[%clk 0:02:25.6]} 10... b6 {[%clk 0:02:43.4]} 11. Bf8 {[%clk 0:02:00.8]}
11... Kxf8 {[%clk 0:02:29.6]} 12. b5 {[%clk 0:02:00.9]} 12... Bb7 {[%clk
0:02:30.3]} 13. bxc6 {[%clk 0:02:00.7]} 13... Ba6 {[%clk 0:02:30.9]} 14. Ne5
{[%clk 0:01:50.5]} 14... Qc7 {[%clk 0:02:29]} 15. Qb3 {[%clk 0:01:46.7]} 15...
Ne4 {[%clk 0:02:24.1]} 16. f3 {[%clk 0:01:42.1]} 16... Nd6 {[%clk 0:02:22.1]}
17. Nd2 {[%clk 0:01:37.1]} 17... f6 {[%clk 0:02:20]} 18. Ng4 {[%clk 0:01:24.5]}
18... Qxc6 {[%clk 0:02:19.5]} 19. Rc1 {[%clk 0:01:20.8]} 19... Rc8 {[%clk
0:02:16.3]} 20. Nf2 {[%clk 0:01:18.1]} 20... Kf7 {[%clk 0:02:15.7]} 21. e4
{[%clk 0:01:17.3]} 21... Nc4 {[%clk 0:02:11.9]} 22. Nxc4 {[%clk 0:01:11.7]}
22... Bxc4 {[%clk 0:02:11.3]} 23. Qc2 {[%clk 0:01:10.7]} 23... Rce8 {[%clk
0:01:57.9]} 24. Ng4 {[%clk 0:01:07.3]} 24... dxe4 {[%clk 0:01:17.5]} 25. fxe4
{[%clk 0:01:00.2]} 25... Bb3 {[%clk 0:01:17.8]} 26. Qe2 {[%clk 0:00:39.5]} 26...
Qxa4 {[%clk 0:01:13.8]} 27. Ne3 {[%clk 0:00:37.1]} 27... Rhf8 {[%clk 0:01:11.3]}
28. O-O {[%clk 0:00:37]} 28... Qc6 {[%clk 0:01:07.6]} 29. e5 {[%clk 0:00:32.4]}
29... f5 {[%clk 0:01:04.3]} 30. Qh5+ {[%clk 0:00:30.8]} 30... Kg8 {[%clk
0:01:04.1]} 31. Rf3 {[%clk 0:00:30.6]} 31... g6 {[%clk 0:00:53.4]} 32. Qh6
{[%clk 0:00:30.5]} 32... Rf7 {[%clk 0:00:50.2]} 33. Rg3 {[%clk 0:00:30.1]} 33...
f4 {[%clk 0:00:44.9]} 34. Rf1 {[%clk 0:00:27.9]} 34... Ref8 {[%clk 0:00:40.4]}
35. Rgf3 {[%clk 0:00:25.6]} 35... fxe3 {[%clk 0:00:28.3]} 36. Qxf8+ {[%clk
0:00:20]} 36... Rxf8 {[%clk 0:00:28.4]} 37. Rxf8+ {[%clk 0:00:20.4]} 37... Kg7
{[%clk 0:00:29.3]} 38. R8f7+ {[%clk 0:00:20.6]} 38... Kh6 {[%clk 0:00:29.1]} 39.
R1f2 {[%clk 0:00:21]} 39... exf2+ {[%clk 0:00:28.7]} 40. Kxf2 {[%clk 0:00:20.2]}
40... Qxc3 {[%clk 0:00:28.1]} 0-1